[Event "WWRR IM 2019"]
[Site "Wachtebeke"]
[Date "2019.03.03"]
[Round "1.1"]
[White "De Ruiter, Danny"]
[Black "Maerevoet, Sim"]
[Result "1-0"]
[ECO "A38"]
[WhiteElo "2328"]
[BlackElo "2251"]
[Annotator "NA"]
[PlyCount "75"]
[EventDate "2019.03.02"]
[EventCountry "BEL"]
[SourceTitle "playchess.com"]
[Source "ChessBase"]
[SourceQuality "1"]
[TimeControl "40/5400+30:900+30"]

1. Nf3 {[%emt 0:00:00]} c5 {[%emt 0:00:25]} 2. c4 {[%emt 0:00:00]} Nc6 {[%emt 0:00:51]} 3. Nc3 {[%emt 0:00:15]} g6 {[%emt 0:00:27]} 4. d3 {[%emt 0:00:33]} Bg7 {[%emt 0:00:33]} 5. g3 {[%emt 0:00:11]} Nf6 {[%emt 0:08:46]} 6. Bg2 {[%emt 0:03:11]} O-O {[%emt 0:01:03]} 7. O-O {[%emt 0:00:10]} e6 {[%emt 0:04:43]} 8. e4 {[%emt 0:06:07]} d5 {[%emt 0:03:56]} 9. Bg5 {[%emt 0:09:24]} d4 {[%emt 0:05:38]} 10. Na4 {[%emt 0:00:15]} Qd6 {[%emt 0:04:39]} 11. Qd2 {[%emt 0:12:09]} e5 {[%emt 0:05:55]} 12. a3 {[%emt 0:01:05]} Nd7 {[%emt 0:03:01]} 13. Bh6 {[%emt 0:08:14]} a6 {[%emt 0:05:04]} 14. Bxg7 {[%emt 0:01:13]} Kxg7 {[%emt 0:00:14]} 15. Bh3 {[%emt 0:00:09]} f5 {[%emt 0:02:34]} 16. b4 {[%emt 0:07:31]} cxb4 {[%emt 0:03:49]} 17. exf5 {[%emt 0:03:46]} b5 {[%emt 0:04:26]} 18. Ng5 {[%emt 0:07:49]} gxf5 {[%emt 0:04:10]} 19. c5 {[%emt 0:00:05]} Qf6 {[%emt 0:08:26]} 20. Nb6 {[%emt 0:01:31]} Nxb6 {[%emt 0:00:17]} 21. cxb6 {[%emt 0:00:04]} bxa3 {[%emt 0:01:03]} 22. f4 {[%emt 0:01:35]} h6 {[%emt 0:02:33]} 23. Nf3 {[%emt 0:05:38]} e4 {[%emt 0:00:25]} 24. Ne5 {[%emt 0:00:02]} e3 {[%emt 0:04:03]} 25. Qg2 {[%emt 0:02:59]} Bb7 {[%emt 0:03:03]} 26. Rfc1 {[%emt 0:07:21]} Rfc8 {[%emt 0:09:10]} 27. Nd7 {[%emt 0:04:31]} Qf7 {[%emt 0:02:27]} 28. Nc5 {[%emt 0:00:02]} Na5 {[%emt 0:00:46]} 29. Nxb7 {[%emt 0:01:12]} Qxb7 {[%emt 0:00:59]} 30. Qa2 {[%emt 0:14:09]} Qxb6 {[%emt 0:07:47]} 31. Bxf5 {[%emt 0:00:26]} Rf8 {[%emt 0:01:53]} 32. Qd5 {[%emt 0:01:10]} Rad8 {[%emt 0:01:34]} 33. Qe5+ {[%emt 0:00:19]} Qf6 {[%emt 0:00:10]} 34. Rc7+ {[%emt 0:00:59]} Kg8 {[%emt 0:01:11]} 35. Be6+ {[%emt 0:00:28]} Kh8 {[%emt 0:00:02]} 36. Qe4 {[%emt 0:00:09]} Qg7 {[%emt 0:01:04]} 37. Rxg7 {[%emt 0:00:16]} Kxg7 {[%emt 0:00:08]} 38. Qe5+ {[%emt 0:00:06]} 1-0

[Event "WWRR IM 2019"]
[Site "Wachtebeke"]
[Date "2019.03.03"]
[Round "1.2"]
[White "Huynh, Laurent"]
[Black "Van der Lende, Ilias"]
[Result "0-1"]
[ECO "C08"]
[WhiteElo "2138"]
[BlackElo "2343"]
[Annotator "NA"]
[PlyCount "74"]
[EventDate "2019.03.02"]
[EventCountry "BEL"]
[SourceTitle "playchess.com"]
[Source "ChessBase"]
[SourceQuality "1"]
[TimeControl "40/5400+30:900+30"]

1. e4 {[%emt 0:00:00]} e6 {[%emt 0:00:00]} 2. d4 {[%emt 0:00:00]} d5 {[%emt 0:00:00]} 3. Nd2 {[%emt 0:00:06]} c5 {[%emt 0:02:27]} 4. exd5 {[%emt 0:02:28]} exd5 {[%emt 0:01:32]} 5. Ngf3 {[%emt 0:05:39]} Nf6 {[%emt 0:00:28]} 6. Bb5+ {[%emt 0:00:55]} Bd7 {[%emt 0:00:06]} 7. Bxd7+ {[%emt 0:00:27]} Nbxd7 {[%emt 0:00:07]} 8. O-O {[%emt 0:00:19]} Be7 {[%emt 0:00:09]} 9. Re1 {[%emt 0:05:35]} O-O {[%emt 0:00:12]} 10. c3 {[%emt 0:00:27]} Re8 {[%emt 0:02:49]} 11. dxc5 {[%emt 0:03:59]} Nxc5 {[%emt 0:00:46]} 12. Nb3 {[%emt 0:00:22]} Nce4 {[%emt 0:00:14]} 13. h3 {[%emt 0:01:17]} Bd6 {[%emt 0:07:28]} 14. Be3 {[%emt 0:03:21]} Qd7 {[%emt 0:01:01]} 15. Nbd4 {[%emt 0:02:49]} Rac8 {[%emt 0:02:12]} 16. Qd3 {[%emt 0:03:14]} a6 {[%emt 0:01:14]} 17. Rad1 {[%emt 0:05:46]} b5 {[%emt 0:04:08]} 18. a3 {[%emt 0:01:52]} Bb8 {[%emt 1:14:07]} 19. Qf1 {[%emt 1:00:54]} Nd6 {[%emt 0:00:00]} 20. Bc1 {[%emt 0:00:30]} Nfe4 {[%emt 0:01:00]} 21. Nd2 {[%emt 0:00:30]} Nc4 {[%emt 0:00:30]} 22. Nxc4 {[%emt 0:00:00]} dxc4 23. Nf3 {[%emt 0:01:00]} Qc7 {[%emt 0:01:00]} 24. Be3 {[%emt 0:00:00]} Re6 25. Rd5 {[%emt 0:00:00]} Rce8 26. Red1 {[%emt 0:01:30]} h6 {[%emt 0:01:30]} 27. Rd7 {[%emt 0:00:30]} Qc8 {[%emt 0:00:30]} 28. R7d5 {[%emt 0:00:00]} Ng3 {[%emt 0:00:00]} 29. fxg3 {[%emt 0:00:00]} Rxe3 {[%emt 0:00:00]} 30. Qf2 {[%emt 0:00:00]} Qc7 {[%emt 0:00:00]} 31. Rd7 {[%emt 0:00:00]} Qxg3 {[%emt 0:00:00]} 32. Rd8 {[%emt 0:00:00]} Bf4 {[%emt 0:00:00]} 33. Rxe8+ {[%emt 0:00:00]} Rxe8 {[%emt 0:00:00]} 34. Qxg3 {[%emt 0:00:00]} Bxg3 {[%emt 0:00:00]} 35. Kf1 {[%emt 0:04:00]} Re6 {[%emt 0:00:00]} 36. Rd8+ {[%emt 0:00:00]} Kh7 {[%emt 0:00:00]} 37. Rd1 {[%emt 0:00:00]} g5 {[%emt 0:00:00]} 0-1

[Event "WWRR IM 2019"]
[Site "Wachtebeke"]
[Date "2019.03.03"]
[Round "1.3"]
[White "Vuelban, Virgilio"]
[Black "Dardha, Daniel"]
[Result "0-1"]
[ECO "A78"]
[WhiteElo "2272"]
[BlackElo "2369"]
[Annotator "NA"]
[PlyCount "178"]
[EventDate "2019.03.02"]
[EventCountry "BEL"]
[SourceTitle "playchess.com"]
[Source "ChessBase"]
[SourceQuality "1"]
[TimeControl "40/5400+30:900+30"]

1. d4 {[%emt 0:01:04]} Nf6 {[%emt 0:00:00]} 2. c4 {[%emt 0:01:40]} c5 {[%emt 0:00:00]} 3. d5 {[%emt 0:00:22]} e6 {[%emt 0:00:29]} 4. Nc3 {[%emt 0:00:21]} exd5 {[%emt 0:00:06]} 5. cxd5 {[%emt 0:00:07]} d6 {[%emt 0:00:05]} 6. Nf3 {[%emt 0:04:33]} g6 {[%emt 0:00:05]} 7. e4 {[%emt 0:02:06]} Bg7 {[%emt 0:00:16]} 8. Be2 {[%emt 0:08:21]} O-O {[%emt 0:00:07]} 9. Nd2 {[%emt 0:00:12]} Na6 {[%emt 0:19:17]} 10. O-O {[%emt 0:01:07]} Nc7 {[%emt 0:00:34]} 11. Re1 {[%emt 0:15:37]} Re8 {[%emt 0:09:33]} 12. a4 {[%emt 0:10:50]} Rb8 {[%emt 0:12:13]} 13. h3 {[%emt 0:13:46]} a6 {[%emt 0:08:45]} 14. a5 {[%emt 0:00:42]} Bd7 {[%emt 0:01:11]} 15. Qb3 {[%emt 0:07:29]} Nb5 {[%emt 0:02:21]} 16. Nxb5 {[%emt 0:05:19]} axb5 {[%emt 0:00:43]} 17. Bxb5 {[%emt 0:04:18]} Bxb5 {[%emt 0:00:06]} 18. Qxb5 {[%emt 0:00:04]} Nxd5 {[%emt 0:00:16]} 19. Rd1 {[%emt 0:00:22]} Nb4 {[%emt 0:03:50]} 20. Qc4 {[%emt 0:06:16]} Qe7 {[%emt 0:07:39]} 21. Kf1 {[%emt 0:07:13]} Ra8 {[%emt 0:05:34]} 22. Ra3 {[%emt 0:02:29]} Qh4 {[%emt 0:07:55]} 23. Rf3 {[%emt 0:02:46]} Re7 {[%emt 0:02:32]} 24. Nb3 {[%emt 0:00:09]} Qxe4 {[%emt 0:06:59]} 25. Qxe4 {[%emt 0:00:14]} Rxe4 {[%emt 0:00:05]} 26. Rxd6 {[%emt 0:00:12]} Nc2 {[%emt 0:04:17]} 27. Bd2 {[%emt 0:01:14]} c4 {[%emt 0:04:57]} 28. Nc5 {[%emt 0:00:20]} Re7 {[%emt 0:00:37]} 29. Na4 {[%emt 0:02:00]} b5 {[%emt 0:02:20]} 30. axb6 {[%emt 0:00:46]} Rxa4 {[%emt 0:00:43]} 31. Rd8+ {[%emt 0:00:10]} Bf8 {[%emt 0:00:02]} 32. g4 {[%emt 0:00:06]} Ra1+ {[%emt 0:00:53]} 33. Kg2 {[%emt 0:00:14]} h5 {[%emt 0:00:59]} 34. Rc3 {[%emt 0:01:57]} Ne1+ {[%emt 0:01:00]} 35. Bxe1 {[%emt 0:00:31]} Raxe1 {[%emt 0:00:06]} 36. Rxc4 {[%emt 0:00:09]} R1e6 {[%emt 0:00:53]} 37. Rc7 {[%emt 0:01:46]} Re8 {[%emt 0:00:25]} 38. Rxe8 {[%emt 0:00:41]} Rxe8 {[%emt 0:00:01]} 39. b7 {[%emt 0:00:04]} Rb8 {[%emt 0:01:05]} 40. gxh5 {[%emt 0:00:13]} Kg7 {[%emt 0:00:24]} 41. hxg6 {[%emt 0:15:41]} Bd6 {[%emt 0:15:35]} 42. Rd7 {[%emt 0:00:49]} Be5 {[%emt 0:00:00]} 43. gxf7 {[%emt 0:00:00]} Kf6 {[%emt 0:00:00]} 44. b3 {[%emt 0:00:00]} Ke6 {[%emt 0:00:00]} 45. Rd3 {[%emt 0:00:00]} Kxf7 {[%emt 0:00:00]} 46. f4 {[%emt 0:00:00]} Bf6 {[%emt 0:00:00]} 47. Rd7+ {[%emt 0:00:00]} Ke6 {[%emt 0:00:00]} 48. Rh7 {[%emt 0:00:00]} Be7 {[%emt 0:00:00]} 49. Rh6+ {[%emt 0:00:00]} Kd7 {[%emt 0:00:00]} 50. f5 {[%emt 0:00:15]} Rxb7 {[%emt 0:00:00]} 51. Kf3 {[%emt 0:00:55]} Rb4 {[%emt 0:00:00]} 52. Re6 {[%emt 0:01:16]} Rxb3+ {[%emt 0:00:00]} 53. Re3 {[%emt 0:00:09]} Rb1 {[%emt 0:00:00]} 54. Kg4 {[%emt 0:00:16]} Rb4+ {[%emt 0:00:34]} 55. Kh5 {[%emt 0:00:21]} Rb6 {[%emt 0:01:07]} 56. Re4 {[%emt 0:00:59]} Rb3 {[%emt 0:00:57]} 57. Kg4 {[%emt 0:00:51]} Rb1 {[%emt 0:02:10]} 58. Re3 {[%emt 0:01:29]} Bf6 {[%emt 0:00:49]} 59. Re6 {[%emt 0:00:14]} Rg1+ {[%emt 0:00:09]} 60. Kf4 {[%emt 0:00:15]} Rf1+ {[%emt 0:00:47]} 61. Kg4 {[%emt 0:00:17]} Be7 {[%emt 0:00:31]} 62. Re3 {[%emt 0:00:22]} Ke8 {[%emt 0:00:15]} 63. Rf3 {[%emt 0:00:23]} Rg1+ {[%emt 0:00:04]} 64. Rg3 {[%emt 0:00:05]} Rb1 {[%emt 0:00:07]} 65. Re3 {[%emt 0:01:54]} Rb4+ {[%emt 0:00:16]} 66. Kf3 {[%emt 0:00:15]} Kf7 {[%emt 0:00:06]} 67. Re4 {[%emt 0:00:08]} Rb1 {[%emt 0:01:04]} 68. Re6 {[%emt 0:00:40]} Rf1+ {[%emt 0:00:39]} 69. Kg4 {[%emt 0:00:14]} Bd8 {[%emt 0:00:47]} 70. Ra6 {[%emt 0:00:23]} Rb1 {[%emt 0:01:01]} 71. Rd6 {[%emt 0:00:37]} Rb4+ {[%emt 0:00:18]} 72. Kf3 {[%emt 0:00:07]} Bg5 {[%emt 0:00:12]} 73. Rd5 {[%emt 0:00:53]} Kf6 {[%emt 0:00:06]} 74. Ra5 {[%emt 0:00:39]} Bf4 {[%emt 0:00:13]} 75. Ra8 {[%emt 0:00:54]} Bb8 {[%emt 0:00:21]} 76. Ra5 {[%emt 0:00:12]} Be5 {[%emt 0:00:05]} 77. Ra8 {[%emt 0:00:32]} Kxf5 {[%emt 0:00:06]} 78. Rf8+ {[%emt 0:00:12]} Bf6 {[%emt 0:00:30]} 79. Re8 {[%emt 0:00:07]} Bg7 {[%emt 0:00:16]} 80. Re3 {[%emt 0:00:13]} Rh4 {[%emt 0:01:31]} 81. Kg2 {[%emt 0:00:14]} Be5 {[%emt 0:00:26]} 82. Rf3+ {[%emt 0:00:35]} Ke4 {[%emt 0:00:46]} 83. Rf7 {[%emt 0:00:48]} Rh6 {[%emt 0:00:09]} 84. Rf2 {[%emt 0:01:23]} Rg6+ {[%emt 0:00:08]} 85. Kf1 {[%emt 0:00:54]} Bd4 {[%emt 0:00:14]} 86. Rg2 {[%emt 0:00:17]} Rb6 {[%emt 0:00:21]} 87. Rg4+ {[%emt 0:00:58]} Kf3 {[%emt 0:00:14]} 88. Ke1 {[%emt 0:00:11]} Be3 {[%emt 0:00:11]} 89. Kd1 {[%emt 0:00:12]} Rc6 {[%emt 0:00:04]} 0-1

[Event "WWRR IM 2019"]
[Site "Wachtebeke"]
[Date "2019.03.03"]
[Round "1.4"]
[White "Blom, Vincent"]
[Black "Hautot, Stephane"]
[Result "0-1"]
[ECO "A36"]
[WhiteElo "2265"]
[BlackElo "2347"]
[Annotator "NA"]
[PlyCount "40"]
[EventDate "2019.03.02"]
[EventCountry "BEL"]
[SourceTitle "playchess.com"]
[Source "ChessBase"]
[SourceQuality "1"]
[TimeControl "40/5400+30:900+30"]

1. c4 {[%emt 0:00:00]} c5 {[%emt 0:01:13]} 2. Nc3 {[%emt 0:00:00]} Nc6 {[%emt 0:00:21]} 3. g3 {[%emt 0:00:23]} g6 {[%emt 0:03:58]} 4. Bg2 {[%emt 0:00:11]} Bg7 {[%emt 0:00:12]} 5. e3 {[%emt 0:04:14]} a6 {[%emt 0:12:42]} 6. Nge2 {[%emt 0:02:45]} e5 {[%emt 0:01:52]} 7. O-O {[%emt 0:18:04]} Nge7 {[%emt 0:00:39]} 8. d4 {[%emt 0:15:43]} cxd4 {[%emt 0:09:48]} 9. exd4 {[%emt 0:04:57]} exd4 {[%emt 0:00:17]} 10. Nd5 {[%emt 0:00:36]} h6 {[%emt 0:09:18]} 11. Re1 {[%emt 0:10:42]} O-O {[%emt 0:01:01]} 12. Nxd4 {[%emt 0:02:57]} Nxd5 {[%emt 0:01:38]} 13. Nxc6 {[%emt 0:00:29]} dxc6 {[%emt 0:00:36]} 14. cxd5 {[%emt 0:00:07]} cxd5 {[%emt 0:02:27]} 15. Bxd5 {[%emt 0:07:50]} Qa5 {[%emt 0:05:40]} 16. b4 {[%emt 0:21:28]} Qxb4 {[%emt 0:03:15]} 17. Be3 {[%emt 0:00:29]} Bf5 {[%emt 0:20:45]} 18. Rc1 {[%emt 0:02:23]} Rac8 {[%emt 0:03:23]} 19. Qf3 {[%emt 0:01:31]} b5 {[%emt 0:08:06]} 20. Rxc8 {[%emt 0:01:43]} Qxe1+ {[%emt 0:01:07]} 0-1

[Event "WWRR IM 2019"]
[Site "Wachtebeke"]
[Date "2019.03.03"]
[Round "2.1"]
[White "Maerevoet, Sim"]
[Black "Beukema, Jasper"]
[Result "1/2-1/2"]
[ECO "D36"]
[WhiteElo "2251"]
[BlackElo "2282"]
[Annotator "NA"]
[PlyCount "96"]
[EventDate "2019.03.02"]
[EventCountry "BEL"]
[SourceTitle "playchess.com"]
[Source "ChessBase"]
[SourceQuality "1"]
[TimeControl "40/5400+30:900+30"]

1. d4 {[%emt 0:10:16]} d5 {[%emt 0:07:59]} 2. c4 {[%emt 0:00:05]} e6 {[%emt 0:00:11]} 3. Nc3 {[%emt 0:00:06]} Be7 {[%emt 0:02:39]} 4. Qc2 {[%emt 0:00:06]} Nf6 {[%emt 0:00:10]} 5. cxd5 {[%emt 0:00:05]} exd5 {[%emt 0:00:05]} 6. Bg5 {[%emt 0:00:06]} c6 {[%emt 0:01:01]} 7. e3 {[%emt 0:00:09]} Nh5 {[%emt 0:01:45]} 8. Bxe7 {[%emt 0:00:28]} Qxe7 {[%emt 0:00:05]} 9. Nxd5 {[%emt 0:01:14]} Qd6 {[%emt 0:00:32]} 10. Nc3 {[%emt 0:00:39]} O-O {[%emt 0:00:07]} 11. Be2 {[%emt 0:01:51]} Nf6 {[%emt 0:00:10]} 12. Nf3 {[%emt 0:00:08]} Nbd7 {[%emt 0:00:09]} 13. O-O {[%emt 0:00:34]} Nd5 {[%emt 0:00:23]} 14. Nxd5 {[%emt 0:03:56]} cxd5 {[%emt 0:00:07]} 15. Rac1 {[%emt 0:01:42]} Nb6 {[%emt 0:00:31]} 16. Ne5 {[%emt 0:02:38]} f6 {[%emt 0:01:18]} 17. Nd3 {[%emt 0:00:24]} Bf5 {[%emt 0:00:27]} 18. Qc7 {[%emt 0:00:45]} Qxc7 {[%emt 0:00:46]} 19. Rxc7 {[%emt 0:00:07]} Rf7 {[%emt 0:00:07]} 20. Rfc1 {[%emt 0:00:11]} Rxc7 {[%emt 0:00:55]} 21. Rxc7 {[%emt 0:00:14]} Bxd3 {[%emt 0:00:07]} 22. Bxd3 {[%emt 0:00:07]} Rc8 {[%emt 0:00:05]} 23. Rxc8+ {[%emt 0:00:25]} Nxc8 {[%emt 0:00:01]} 24. Bc2 {[%emt 0:02:11]} Kf7 {[%emt 0:02:00]} 25. Kf1 {[%emt 0:00:27]} Nd6 {[%emt 0:00:36]} 26. g4 {[%emt 0:02:27]} g6 {[%emt 0:00:22]} 27. Ke2 {[%emt 0:00:49]} Ke6 {[%emt 0:00:37]} 28. f3 {[%emt 0:02:15]} f5 {[%emt 0:00:28]} 29. gxf5+ {[%emt 0:00:28]} gxf5 {[%emt 0:01:13]} 30. Bb3 {[%emt 0:01:59]} b5 {[%emt 0:03:46]} 31. a4 {[%emt 0:04:00]} bxa4 {[%emt 0:02:22]} 32. Bxa4 {[%emt 0:00:07]} f4 {[%emt 0:00:43]} 33. exf4 {[%emt 0:00:35]} Nf5 {[%emt 0:01:12]} 34. Kd3 {[%emt 0:00:08]} Nh4 {[%emt 0:00:06]} 35. Ke3 {[%emt 0:06:41]} Ng2+ {[%emt 0:00:17]} 36. Kf2 {[%emt 0:00:04]} Nxf4 {[%emt 0:00:05]} 37. Bc2 {[%emt 0:00:03]} h6 {[%emt 0:01:18]} 38. b3 {[%emt 0:04:16]} Kf6 {[%emt 0:02:16]} 39. Bd1 {[%emt 0:00:44]} Kg5 {[%emt 0:01:03]} 40. Bc2 {[%emt 0:09:45]} Kf6 {[%emt 0:01:57]} 41. Bh7 {[%emt 0:16:47]} a5 {[%emt 0:15:51]} 42. Ke3 {[%emt 0:04:29]} Ng2+ {[%emt 0:00:31]} 43. Kd2 {[%emt 0:00:54]} Nf4 {[%emt 0:00:11]} 44. Bd3 {[%emt 0:10:31]} Nxd3 {[%emt 0:02:39]} 45. Kxd3 {[%emt 0:00:24]} Kf5 {[%emt 0:00:06]} 46. Ke3 {[%emt 0:00:38]} h5 {[%emt 0:03:53]} 47. Ke2 {[%emt 0:01:19]} Kg5 {[%emt 0:00:26]} 48. Ke3 {[%emt 0:00:56]} Kf5 {[%emt 0:00:06]} 1/2-1/2

[Event "WWRR IM 2019"]
[Site "Wachtebeke"]
[Date "2019.03.03"]
[Round "2.2"]
[White "Hautot, Stephane"]
[Black "De Rover, Yong Hoon"]
[Result "1/2-1/2"]
[ECO "E69"]
[WhiteElo "2347"]
[BlackElo "2422"]
[Annotator "NA"]
[PlyCount "80"]
[EventDate "2019.03.02"]
[EventCountry "BEL"]
[SourceTitle "playchess.com"]
[Source "ChessBase"]
[SourceQuality "1"]
[TimeControl "40/5400+30:900+30"]

1. d4 {[%emt 0:00:00]} Nf6 {[%emt 0:00:41]} 2. Nf3 {[%emt 0:00:03]} g6 {[%emt 0:00:44]} 3. g3 {[%emt 0:00:44]} Bg7 {[%emt 0:00:10]} 4. Bg2 {[%emt 0:00:08]} O-O {[%emt 0:00:11]} 5. O-O {[%emt 0:00:21]} d6 {[%emt 0:00:19]} 6. c4 {[%emt 0:00:21]} Nbd7 {[%emt 0:00:25]} 7. Nc3 {[%emt 0:00:39]} e5 {[%emt 0:00:18]} 8. e4 {[%emt 0:01:17]} c6 {[%emt 0:00:10]} 9. h3 {[%emt 0:00:52]} Qb6 {[%emt 0:00:21]} 10. Re1 {[%emt 0:35:23]} exd4 {[%emt 0:00:30]} 11. Nxd4 {[%emt 0:00:30]} Re8 {[%emt 0:00:30]} 12. Nc2 {[%emt 0:00:30]} Qc7 {[%emt 0:00:30]} 13. Be3 {[%emt 0:00:30]} Nc5 {[%emt 0:00:30]} 14. Bf4 {[%emt 0:00:30]} Rd8 {[%emt 0:00:30]} 15. b4 {[%emt 0:00:30]} Ne6 {[%emt 0:00:30]} 16. Bd2 {[%emt 0:00:30]} Nd7 {[%emt 0:00:30]} 17. f4 {[%emt 0:00:30]} Nb6 {[%emt 0:00:30]} 18. Ne3 {[%emt 0:00:30]} Nd4 {[%emt 0:00:30]} 19. Rc1 {[%emt 0:00:30]} Qe7 {[%emt 0:51:35]} 20. Kh2 {[%emt 0:41:22]} Be6 {[%emt 0:06:32]} 21. Ne2 {[%emt 0:05:35]} Nxe2 {[%emt 0:07:01]} 22. Qxe2 {[%emt 0:00:18]} Re8 {[%emt 0:02:14]} 23. Qf3 {[%emt 0:04:11]} f6 {[%emt 0:02:02]} 24. Nf5 {[%emt 0:01:58]} Bxf5 {[%emt 0:05:42]} 25. exf5 {[%emt 0:00:05]} Qf7 {[%emt 0:00:10]} 26. fxg6 {[%emt 0:00:47]} hxg6 {[%emt 0:00:07]} 27. Qd3 {[%emt 0:02:13]} Red8 {[%emt 0:02:08]} 28. f5 {[%emt 0:00:52]} gxf5 {[%emt 0:00:21]} 29. Rf1 {[%emt 0:01:12]} d5 {[%emt 0:01:34]} 30. cxd5 {[%emt 0:00:39]} Nxd5 {[%emt 0:00:08]} 31. Qxf5 {[%emt 0:00:10]} Ne7 {[%emt 0:01:36]} 32. Qc2 {[%emt 0:00:02]} Rd7 {[%emt 0:01:32]} 33. Rf2 {[%emt 0:00:29]} Rad8 {[%emt 0:01:42]} 34. Rcf1 {[%emt 0:00:23]} Qg6 {[%emt 0:00:15]} 35. Qxg6 {[%emt 0:01:03]} Nxg6 {[%emt 0:00:06]} 36. Bc3 {[%emt 0:00:26]} Ne5 {[%emt 0:00:13]} 37. Bxe5 {[%emt 0:01:00]} fxe5 {[%emt 0:00:07]} 38. Re2 {[%emt 0:00:57]} Rd4 {[%emt 0:02:45]} 39. Rb1 {[%emt 0:00:09]} Rd2 {[%emt 0:05:27]} 40. Rb2 {[%emt 0:00:32]} Rxe2 {[%emt 0:02:31]} 1/2-1/2

[Event "WWRR IM 2019"]
[Site "Wachtebeke"]
[Date "2019.03.03"]
[Round "2.3"]
[White "Dardha, Daniel"]
[Black "Blom, Vincent"]
[Result "1/2-1/2"]
[ECO "B38"]
[WhiteElo "2369"]
[BlackElo "2265"]
[Annotator "NA"]
[PlyCount "98"]
[EventDate "2019.03.02"]
[EventCountry "BEL"]
[SourceTitle "playchess.com"]
[Source "ChessBase"]
[SourceQuality "1"]
[TimeControl "40/5400+30:900+30"]

1. Nf3 {[%emt 0:04:11]} Nf6 {[%emt 0:00:00]} 2. c4 {[%emt 0:00:40]} c5 {[%emt 0:02:20]} 3. Nc3 {[%emt 0:00:59]} g6 {[%emt 0:05:50]} 4. d4 {[%emt 0:01:05]} cxd4 {[%emt 0:00:40]} 5. Nxd4 {[%emt 0:00:07]} Bg7 {[%emt 0:03:38]} 6. e4 {[%emt 0:00:08]} d6 {[%emt 0:01:03]} 7. Be2 {[%emt 0:00:10]} Nc6 {[%emt 0:01:58]} 8. Be3 {[%emt 0:00:09]} Bd7 {[%emt 0:04:59]} 9. O-O {[%emt 0:01:24]} O-O {[%emt 0:01:10]} 10. Qd2 {[%emt 0:00:30]} Re8 {[%emt 0:11:01]} 11. f3 {[%emt 0:03:05]} a6 {[%emt 0:05:38]} 12. Rac1 {[%emt 0:02:33]} Rc8 {[%emt 0:10:29]} 13. Rfd1 {[%emt 0:00:25]} Qa5 {[%emt 0:00:56]} 14. Nb3 {[%emt 0:03:39]} Qd8 {[%emt 0:07:06]} 15. Nd5 {[%emt 0:01:35]} Nxd5 {[%emt 0:03:04]} 16. cxd5 {[%emt 0:02:23]} Ne5 {[%emt 0:01:33]} 17. Na5 {[%emt 0:06:34]} Rxc1 {[%emt 0:08:41]} 18. Rxc1 {[%emt 0:00:01]} b6 {[%emt 0:00:35]} 19. Nc6 {[%emt 0:03:23]} Qa8 {[%emt 0:01:19]} 20. Nxe5 {[%emt 0:03:42]} Bxe5 {[%emt 0:00:16]} 21. Bxb6 {[%emt 0:00:27]} Qb7 {[%emt 0:04:57]} 22. Bd4 {[%emt 0:01:01]} Bxd4+ {[%emt 0:01:19]} 23. Qxd4 {[%emt 0:00:05]} Rb8 {[%emt 0:00:12]} 24. Rc2 {[%emt 0:05:16]} f6 {[%emt 0:02:45]} 25. h3 {[%emt 0:02:34]} g5 {[%emt 0:02:32]} 26. Kh2 {[%emt 0:00:47]} Kf7 {[%emt 0:09:57]} 27. Bd3 {[%emt 0:03:07]} Rc8 {[%emt 0:05:16]} 28. Rxc8 {[%emt 0:01:32]} Bxc8 {[%emt 0:00:08]} 29. b4 {[%emt 0:02:49]} Bd7 {[%emt 0:01:49]} 30. a3 {[%emt 0:01:55]} Bb5 {[%emt 0:02:03]} 31. Kg1 {[%emt 0:13:04]} Qc7 {[%emt 0:00:29]} 32. Bxb5 {[%emt 0:04:26]} axb5 {[%emt 0:00:03]} 33. Qe3 {[%emt 0:00:30]} Qc2 {[%emt 0:00:29]} 34. Kh2 {[%emt 0:01:31]} Kg6 {[%emt 0:01:15]} 35. f4 {[%emt 0:01:07]} gxf4 {[%emt 0:00:29]} 36. Qxf4 {[%emt 0:00:05]} Kf7 {[%emt 0:01:13]} 37. h4 {[%emt 0:02:29]} Qd3 {[%emt 0:00:24]} 38. Qf3 {[%emt 0:01:28]} Qd2 {[%emt 0:00:43]} 39. Kh3 {[%emt 0:03:05]} Qc1 {[%emt 0:00:21]} 40. Kg3 {[%emt 0:06:39]} Kf8 {[%emt 0:00:32]} 41. Qd3 {[%emt 0:21:40]} h5 {[%emt 0:05:03]} 42. Kf3 {[%emt 0:00:00]} Kf7 {[%emt 0:02:32]} 43. g3 {[%emt 0:00:00]} Qh1+ {[%emt 0:00:54]} 44. Kf4 {[%emt 0:00:00]} Qc1+ {[%emt 0:01:08]} 45. Qe3 {[%emt 0:01:05]} Qf1+ {[%emt 0:00:19]} 46. Qf3 {[%emt 0:00:06]} Qc1+ {[%emt 0:00:04]} 47. Qe3 {[%emt 0:01:45]} Qf1+ {[%emt 0:02:08]} 48. Qf3 {[%emt 0:00:05]} Qc1+ {[%emt 0:00:08]} 49. Kf5 {[%emt 0:01:30]} Qc8+ {[%emt 0:01:01]} 1/2-1/2